Cogmind - Beta 11.1 @@@ ROGUE MODE // 2022.10.20 @ 23:01:18 Player: darki Result: Destroyed by P-80 Master with Gamma Rifle Performance ------------- Evolutions (8) 4000 Regions Visited (18) 3600 Robots Destroyed (36) 180 Value Destroyed (1343) 1343 Prototype IDs (50) 1000 Alien Tech Used (1) 200 Bonus (3830) 3830 TOTAL SCORE: 14153 Bonus ------- High Alert Combat Kills 30 Entered DSFs 500 Aligned with FarCom 300 Met Warlord at Base 500 MAIN.C Attacked Warlord 500 Met Warlord at Research 2000 Cogmind --------- Core Integrity 0/1450 Matter 300/300 Energy 36/100 System Corruption 18% Temperature Cool (0) Movement Core (50) Location -2/Research Parts ------- > --- POWER (3) -------- (None) > --- PROPULSION (6) --- (None) > --- UTILITY (13) ----- (None) > --- WEAPON (2) ------- (None) > --- INVENTORY (5) ---- Antigrav Array Heavy Shock Bomb Launcher Peak State ------------ > --- POWER ------------ Particle Reactor Particle Reactor Light Quantum Reactor > --- PROPULSION ------- Antigrav Array Antigrav Array Combat Linear Gravjet Combat Linear Gravjet > --- UTILITY ---------- Power Amplifier Advanced Heat Sink Improved Energy Well Advanced Sensor Array Advanced Signal Interpreter Experimental Targeting Computer Experimental Core Analyzer Advanced Reaction Control System Phase Shifter Cloaking Device Thermal Barrier Point Defense Array Improved Component Analysis Suite > --- WEAPON ----------- Gamma Bomb Array Ionic Axe > --- INVENTORY -------- Improved Quantum Reactor Antigrav Array Particle Cleaver Plasma Lance [Rating: 177] Favorites ----------- Power Light Fission Core Engine Ion Engine Power Core Light Fission Core Reactor Light Quantum Reactor Propulsion Aluminum Leg Leg Aluminum Leg Hover Unit Antigrav Array Flight Unit Makeshift Flight Unit Utility Cloaking Device Device Cloaking Device Storage Medium Storage Unit Processor Advanced Signal Interpreter Hackware Hacking Suite Protection Improved Propulsion Shielding Weapon Flak Cannon Energy Gun EM Pulse Gun Energy Cannon Vortex Cannon Ballistic Gun High-powered Shotgun Ballistic Cannon Flak Cannon Launcher Gamma Bomb Array Impact Weapon Heavy Flail Slashing Weapon Particle Cleaver Build | -11 -10 -10 -10 -9 -8 -7 -6 -6 -6 -5 -5 -5 -5 -4 -4 -3 -3 -2 ------- Run | Scr Mat Min Exi Min Mat Fac Fac Low Low Fac Upp Upp War Pro Fac Res DSF Res Slots Evolved 16 | . . . . . 4 2 2 . . 2 . . . . 2 2 . 2 Power 1 | . . . . . . . . . . . . . . . . 1 . . Propulsion 4 | . . . . . 2 . . . . . . . . . 1 . . 1 Utility 11 | . . . . . 2 2 2 . . 2 . . . . 1 1 . 1 Weapon . | . . . . . . . . . . . . . . . . . . . Parts Attached 111 | . 1 5 . . 10 5 3 5 2 3 1 . 14 . 15 1 4 42 Power 12 | . . . . . . 1 . 1 . . . . 3 . . . 1 6 Engine 1 | . . . . . . . . . . . . . 1 . . . . . Core 4 | . . . . . . 1 . 1 . . . . 2 . . . . . Reactor 7 | . . . . . . . . . . . . . . . . . 1 6 Propulsion 14 | . . . . . 1 . . . . 1 . . 3 . 4 . 3 2 Treads . | . . . . . . . . . . . . . . . . . . . Leg . | . . . . . . . . . . . . . . . . . . . Wheel . | . . . . . . . . . . . . . . . . . . . Hover 9 | . . . . . . . . . . . . . . . 4 . 3 2 Flight 5 | . . . . . 1 . . . . 1 . . 3 . . . . . Utility 69 | . . 3 . . 7 4 3 4 2 2 1 . 6 . 10 1 . 26 Device 47 | . . 3 . . 2 2 1 3 2 2 1 . 3 . 10 1 . 17 Storage 2 | . . . . . 1 . . . . . . . . . . . . 1 Processor 9 | . . . . . 1 . 2 . . . . . . . . . . 6 Hackware 2 | . . . . . . 2 . . . . . . . . . . . . Protection 9 | . . . . . 3 . . 1 . . . . 3 . . . . 2 Artifact . | . . . . . . . . . . . . . . . . . . . Weapon 16 | . 1 2 . . 2 . . . . . . . 2 . 1 . . 8 Energy Gun 1 | . 1 . . . . . . . . . . . . . . . . . Energy Cannon 1 | . . . . . . . . . . . . . 1 . . . . . Ballistic Gun 1 | . . 1 . . . . . . . . . . . . . . . . Ballistic Cannon 1 | . . 1 . . . . . . . . . . . . . . . . Launcher 6 | . . . . . . . . . . . . . 1 . . . . 5 Special Weapon . | . . . . . . . . . . . . . . . . . . . Impact Weapon 2 | . . . . . 2 . . . . . . . . . . . . . Slashing Weapon 4 | . . . . . . . . . . . . . . . 1 . . 3 Piercing Weapon . | . . . . . . . . . . . . . . . . . . . Special Melee Weapon . | . . . . . . . . . . . . . . . . . . . Unidentified Prototypes 14 | . . 1 . . . . . 1 1 . . . 2 . . . . 9 Parts Lost 51 | . . 1 . . . . . . 1 4 . 1 . . . . 5 39 Power 5 | . . . . . . . . . . . . . . . . . 1 4 Propulsion 6 | . . . . . . . . . . 1 . . . . . . 1 4 Utility 31 | . . . . . . . . . . 3 . . . . . . 3 25 Weapon 9 | . . 1 . . . . . . 1 . . 1 . . . . . 6 Highest Loss Streak 24 | . . 1 . . . . . . 1 4 . 1 . . . . 5 24 To Critical Strikes 1 | . . . . . . . . . . . . . . . . . . 1 Average Slot Usage (%) 78 | . 85 97 100 100 71 76 80 80 74 63 30 31 62 66 85 77 67 78 Engine 4 | . 14 14 14 14 9 2 . . . . . . . 5 5 4 1 . Core 2 | . . . . . . 4 6 6 12 10 . . 5 5 5 4 4 . Reactor 2 | . . . . . . . . . . . . . . . . . 1 11 Leg 7 | . 28 28 28 28 . . . . . . . . . . . . . . Hover 3 | . . . . . . . . . . . . . . . 9 18 14 14 Flight 5 | . . . . . 8 7 6 6 6 5 5 5 19 22 13 . . . Device 20 | . . 12 14 14 16 14 20 19 18 25 8 11 15 16 39 45 40 34 Storage 6 | . 14 14 14 14 9 7 6 6 6 4 . . . . . . . 1 Processor 7 | . . . . . 3 7 13 12 12 11 11 11 11 11 8 4 4 9 Hackware 2 | . . . . . . 15 13 11 4 . . . . . . . . . Protection 2 | . . . . . 7 . . 1 4 . . . 9 5 3 . . . Ballistic Gun 3 | . 8 12 14 14 6 . . . . . . . . . . . . . Ballistic Cannon 4 | . . 12 14 14 9 7 6 6 3 . . . . . . . . . Impact Weapon 2 | . . . . . 2 7 6 6 6 5 5 3 . . . . . . Naked Turns 1 | . . . . . . . . . . . . . . . . . . 1 Heaviest Build 94 | 13 14 22 22 22 36 31 32 38 39 41 5 5 38 23 28 27 30 94 Greatest Support 86 | 20 20 20 20 20 50 50 50 50 50 50 6 6 30 30 40 40 64 86 Greatest Overweight (x) 3 | . . 1 1 1 . . . . . . . . 1 . 3 . . 1 Average Overweight (x) . | . . . 1 1 . . . . . . . . . . . . . . Largest Inventory Capacity 10 | . 8 8 8 8 10 10 10 10 10 10 5 5 5 5 5 5 5 5 Average Capacity 7 | . 8 8 8 8 9 10 10 10 10 9 5 5 5 5 5 5 5 5 Most Carried 10 | . 7 8 8 8 10 10 9 10 10 9 5 5 5 5 5 4 5 5 Average Carried 6 | . 6 5 7 8 5 9 8 8 8 8 5 5 4 5 4 3 3 4 Final Capacity 10 | 8 8 8 8 8 10 10 10 10 10 5 5 5 5 5 5 5 5 5 Final Carried 10 | 6 7 6 8 8 10 10 8 8 10 5 5 5 5 5 4 3 5 3 Class Distribution -------------------- 37% | Mutant 12% | Generator-Scout 11% | Scout 10% | Hacker-Scout 9% | Derelict-Mutant 4% | Hacker-Mutant 3% | Ninja Dominant Class ---------------- Mutant | -10/Materials Mutant | -10/Mines Mutant | -10/Exiles Mutant | -9/Mines Mutant | -8/Materials Hacker-Mutant | -7/Factory Hacker-Scout | -6/Factory Hacker-Scout | -6/Lower Caves Scout | -6/Lower Caves Ninja | -5/Factory Mutant | -5/Upper Caves Mutant | -5/Upper Caves Derelict-Mutant | -5/Warlord Derelict-Mutant | -4/Proximity Caves Derelict-Scout | -4/Factory Derelict-Scout | -3/Research Scout | -3/DSF Generator-Scout | -2/Research Resources | -11 -10 -10 -10 -9 -8 -7 -6 -6 -6 -5 -5 -5 -5 -4 -4 -3 -3 -2 ----------- Run | Scr Mat Min Exi Min Mat Fac Fac Low Low Fac Upp Upp War Pro Fac Res DSF Res Matter Collected 3485 | 200 . 180 . . 57 229 . 54 103 213 59 101 1709 . . . . 580 Remotely 20 | . . . . . . . . . . . . . . . . . . 20 Salvage Created 1068 | . . 46 . . 57 150 . 16 . 213 . . . . . . . 586 Parts 39 | . . 3 . . 2 5 . . . 3 . . . . . . . 26 Haulers Intercepted 2 | . . . . . 1 1 . . . . . . . . . . . . Recyclers Shooed . | . . . . . . . . . . . . . . . . . . . Parts Field Recycled . | . . . . . . . . . . . . . . . . . . . Retrieved Matter . | . . . . . . . . . . . . . . . . . . . Parts Self-Destructed 1 | . . . . . . . . . . . . . . 1 . . . . Prevented 3 | . . . . . . . . . 3 . . . . . . . . . Kills | -11 -10 -10 -10 -9 -8 -7 -6 -6 -6 -5 -5 -5 -5 -4 -4 -3 -3 -2 ------- Run | Scr Mat Min Exi Min Mat Fac Fac Low Low Fac Upp Upp War Pro Fac Res DSF Res Combat Hostiles Destroyed 28 | . . 5 . . . 4 . 1 . 1 . . . . . . . 17 Melee 4 | . . . . . . . . . . . . . . . . . . 4 Guns 3 | . . 3 . . . . . . . . . . . . . . . . Cannons 4 | . . 2 . . . 1 . 1 . . . . . . . . . . AOE 15 | . . . . . . 3 . . . . . . . . . . . 12 Classes Destroyed 12 | . . 2 . . 2 1 . . . 3 . . . . . . . 4 Worker 5 | . . . . . . . . . . 5 . . . . . . . . Builder 1 | . . . . . . . . . . . . . . . . . . 1 Hauler 2 | . . . . . 1 1 . . . . . . . . . . . . Recycler 1 | . . . . . . . . . . 1 . . . . . . . . Operator 1 | . . . . . . . . . . . . . . . . . . 1 Watcher 1 | . . . . . 1 . . . . . . . . . . . . . Swarmer 15 | . . 2 . . . . . 1 . . . . . . . . . 12 Cutter 1 | . . . . . . . . . . 1 . . . . . . . . Grunt 5 | . . . . . . 4 . . . . . . . . . . . 1 Hunter 2 | . . . . . . . . . . . . . . . . . . 2 Programmer 2 | . . . . . . . . . . . . . . . . . . 2 Assembled 3 | . . 3 . . . . . . . . . . . . . . . . Best Kill Streak 7 | . . 2 . . 1 4 . 1 . 7 . . . . . . . 7 Combat Bots Only 6 | . . 2 . . . 4 . 1 . 1 . . . . . . . 6 Max Kills in Single Turn 5 | . . 1 . . 1 2 . 1 . 1 . . . . . . . 5 Gunslinging . | . . . . . . . . . . . . . . . . . . . Exploded 4 | . . . . . . 2 . . . . . . . . . . . 4 Melee 1 | . . . . . . . . . . . . . . . . . . 1 Uniques/NPCs Destroyed . | . . . . . . . . . . . . . . . . . . . Combat | -11 -10 -10 -10 -9 -8 -7 -6 -6 -6 -5 -5 -5 -5 -4 -4 -3 -3 -2 -------- Run | Scr Mat Min Exi Min Mat Fac Fac Low Low Fac Upp Upp War Pro Fac Res DSF Res Damage Taken 7787 | . 61 261 . . 105 303 . 268 265 585 26 319 . 150 61 . 352 5031 Core 2184 | . 14 78 . . 15 30 . 27 16 150 26 259 . 64 . . 40 1465 Absorbed by Shields 407 | . . . . . . . . . . 30 . . . . . . . 377 Redirected to Shielding 108 | . . . . . 32 . . 26 23 . . . . 27 . . . . Regen/Repaired (Parts) 67 | . . . . . . . . . . 67 . . . . . . . . Core Remaining (%) 86 | 100 . . . 63 97 95 . . 94 . . . . 50 100 . 96 . Volleys Fired 43 | . . 10 . . 11 5 . 2 . . . . . . . . . 15 Largest 2 | . . 2 . . 2 1 . 1 . . . . . . . . . 1 Hottest 80 | . . 69 . . 69 44 . 44 . . . . . . . . . 80 Shots Fired 62 | . . 20 . . 21 5 . 2 . . . . . . . . . 14 Gun 20 | . . 10 . . 10 . . . . . . . . . . . . . Cannon 28 | . . 10 . . 11 5 . 2 . . . . . . . . . . Launcher 14 | . . . . . . . . . . . . . . . . . . 14 Special . | . . . . . . . . . . . . . . . . . . . Kinetic 48 | . . 20 . . 21 5 . 2 . . . . . . . . . . Thermal . | . . . . . . . . . . . . . . . . . . . Explosive . | . . . . . . . . . . . . . . . . . . . Electromagnetic 9 | . . . . . . . . . . . . . . . . . . 9 Entropic 5 | . . . . . . . . . . . . . . . . . . 5 Robot Hit Streak 12 | . . 4 . . 5 . . 3 . . . . . . . . . 12 Robot Miss Streak 10 | . . 7 . . 10 . . 3 . . . . . . . . . 4 Penetration Max . | . . . . . . . . . . . . . . . . . . . Secondary Targets . | . . . . . . . . . . . . . . . . . . . Shots Hit Robots 46 | . . 11 . . 10 1 . 2 . 7 . . . . . . . 15 Core Hits 69 | . . 11 . . 4 7 . 3 . 1 . . . . . . . 43 Critical Kills 1 | . . . . . . . . . . 1 . . . . . . . . Critical Parts Destroyed 2 | . . . . . . 1 . . . 1 . . . . . . . . Critical Strikes 3 | . . . . . . 1 . . . 2 . . . . . . . . Smash 3 | . . . . . . 1 . . . 2 . . . . . . . . Melee Attacks 54 | . . . . . 6 4 1 3 1 8 . . . . . . . 31 Impact 23 | . . . . . 6 4 1 3 1 8 . . . . . . . . Slashing 31 | . . . . . . . . . . . . . . . . . . 31 Piercing . | . . . . . . . . . . . . . . . . . . . Sneak Attacks 8 | . . . . . 1 1 . . . 6 . . . . . . . . Combat Hostiles . | . . . . . . . . . . . . . . . . . . . Follow-up Attacks . | . . . . . . . . . . . . . . . . . . . Damage Inflicted 4523 | . . 183 . . 191 709 . 41 . 790 . . . . . . . 2609 Guns 104 | . . 68 . . 36 . . . . . . . . . . . . . Cannons 287 | . . 115 . . 81 50 . 41 . . . . . . . . . . Explosions 2736 | . . . . . . 580 . . . . . . . . . . . 2156 Melee 1375 | . . . . . 74 79 . . . 787 . . . . . . . 435 Ramming 21 | . . . . . . . . . . 3 . . . . . . . 18 Kinetic 391 | . . 183 . . 117 50 . 41 . . . . . . . . . . Thermal 62 | . . . . . . . . . . . . . . . . . . 62 Explosive 652 | . . . . . . 580 . . . . . . . . . . . 72 Electromagnetic 547 | . . . . . . . . . . . . . . . . . . 547 Impact 940 | . . . . . 74 79 . . . 787 . . . . . . . . Slashing 435 | . . . . . . . . . . . . . . . . . . 435 Piercing . | . . . . . . . . . . . . . . . . . . . Entropic 1475 | . . . . . . . . . . . . . . . . . . 1475 Highest Corruption 17 | . . . . . . . . . . . . . . . . . . 17 Average Corruption 4 | . . . . . . . . . . . . . . . . . . 4 Corruption Purged . | . . . . . . . . . . . . . . . . . . . Corruption Blocked 18 | . . . . . . . . . . . . . . . . . . 18 Effects 37 | . . . . . . . . . . . . . . . . . . 37 Message Errors 12 | . . . . . . . . . . . . . . . . . . 12 Matter Fused 4 | . . . . . . . . . . . . . . . . . . 4 Heat Flow Errors 3 | . . . . . . . . . . . . . . . . . . 3 Energy Discharges 8 | . . . . . . . . . . . . . . . . . . 8 Data Loss (minor) 4 | . . . . . . . . . . . . . . . . . . 4 Data Loss (major) 2 | . . . . . . . . . . . . . . . . . . 2 Misdirections 3 | . . . . . . . . . . . . . . . . . . 3 Weapon Failures 1 | . . . . . . . . . . . . . . . . . . 1 Overload Shots . | . . . . . . . . . . . . . . . . . . . Overflow Damage 1102 | . . . . . 52 93 . . . 436 . . . . . . . 521 Projectiles 1 | . . . . . . 1 . . . . . . . . . . . . Explosions 390 | . . . . . . 13 . . . . . . . . . . . 377 Melee 711 | . . . . . 52 79 . . . 436 . . . . . . . 144 Knockbacks 4 | . . . . . 2 . . . . 2 . . . . . . . . Impact 2 | . . . . . . . . . . 2 . . . . . . . . Kinetic 2 | . . . . . 2 . . . . . . . . . . . . . Secondary . | . . . . . . . . . . . . . . . . . . . Self-Inflicted Damage 383 | . . . . . . 69 . . . 1 . . . . . . . 313 Shots 6 | . . . . . . 1 . . . . . . . . . . . 5 Rammed 2 | . . . . . . . . . . 1 . . . . . . . 1 Targets Rammed 2 | . . . . . . . . . . 1 . . . . . . . 1 Kicked . | . . . . . . . . . . . . . . . . . . . Crushed . | . . . . . . . . . . . . . . . . . . . Highest Temperature 324 | . . 45 . . 55 85 . 22 9 3 . . . . . . . 324 Average Temperature 80 | . . 15 . . 18 41 . 15 9 3 . . . . . . . 87 Received Heat Transfer 488 | . 36 . . . 45 54 . 60 48 45 . . . . . . . 200 Effects 3 | . . . . . . . . . . . . . . . . . . 3 Energy Bleed 1 | . . . . . . . . . . . . . . . . . . 1 Interference 2 | . . . . . . . . . . . . . . . . . . 2 Siege Activations . | . . . . . . . . . . . . . . . . . . . Robots Corrupted 1 | . . . . . . . . . . . . . . . . . . 1 Combat Hostiles 1 | . . . . . . . . . . . . . . . . . . 1 Parts Fried 11 | . . . . . 1 1 . . . 8 . . . . . . . 1 Impact Corruptions 12 | . . . . . 1 1 . . . 10 . . . . . . . . Robots Melted . | . . . . . . . . . . . . . . . . . . . Combat Hostiles . | . . . . . . . . . . . . . . . . . . . Parts Melted . | . . . . . . . . . . . . . . . . . . . Heat Transferred 100 | . . . . . . . . . . . . . . . . . . 100 Parts Sabotaged . | . . . . . . . . . . . . . . . . . . . Parts Stolen . | . . . . . . . . . . . . . . . . . . . Parts Stripped . | . . . . . . . . . . . . . . . . . . . Power Chain Reactions 2 | . . . . . . . . . . . . . . . . . . 2 Missiles Intercepted . | . . . . . . . . . . . . . . . . . . . Alert | -11 -10 -10 -10 -9 -8 -7 -6 -6 -6 -5 -5 -5 -5 -4 -4 -3 -3 -2 ------- Run | Scr Mat Min Exi Min Mat Fac Fac Low Low Fac Upp Upp War Pro Fac Res DSF Res Peak Influence 509 | . 30 65 . . 169 275 73 . . 145 . . . . 85 49 36 509 Initial 76 | . . 11 . . . 76 36 . . 18 . . . . 25 44 36 . Average 103 | . 22 8 . . 58 90 47 . . 44 . . . . 36 45 13 241 Maximum Alert Level 2 | . . . . . . 1 . . . . . . . . . . . 2 Low Security (%) 76 | . 100 100 . 100 100 98 100 . . 100 . . . . 100 100 100 29 Level 1 20 | . . . . . . 1 . . . . . . . . . . . 60 Level 2 3 | . . . . . . . . . . . . . . . . . . 10 Level 3 . | . . . . . . . . . . . . . . . . . . . Level 4 . | . . . . . . . . . . . . . . . . . . . Level 5 . | . . . . . . . . . . . . . . . . . . . High Security . | . . . . . . . . . . . . . . . . . . . Max Security . | . . . . . . . . . . . . . . . . . . . Squads Dispatched 8 | . 1 . . . . 2 . . . 2 . . . . 2 . . 1 Investigation . | . . . . . . . . . . . . . . . . . . . Extermination 2 | . . . . . . 1 . . . . . . . . 1 . . . Reinforcement 5 | . 1 . . . . . . . . 2 . . . . 1 . . 1 Assault 1 | . . . . . . 1 . . . . . . . . . . . . Garrison . | . . . . . . . . . . . . . . . . . . . Intercept . | . . . . . . . . . . . . . . . . . . . Searches Triggered . | . . . . . . . . . . . . . . . . . . . Construction Impeded . | . . . . . . . . . . . . . . . . . . . Haulers Reinforced . | . . . . . . . . . . . . . . . . . . . Active Scanning Responses . | . . . . . . . . . . . . . . . . . . . Cargo Convoy Interrupts . | . . . . . . . . . . . . . . . . . . . Stealth | -11 -10 -10 -10 -9 -8 -7 -6 -6 -6 -5 -5 -5 -5 -4 -4 -3 -3 -2 --------- Run | Scr Mat Min Exi Min Mat Fac Fac Low Low Fac Upp Upp War Pro Fac Res DSF Res Distress Signals 20 | . . 1 . . 3 . . . . . . . 1 . . . . 15 Communications Jammed . | . . . . . . . . . . . . . . . . . . . Distress Signals . | . . . . . . . . . . . . . . . . . . . Times Spotted 193 | . 5 7 . . 15 8 2 7 10 10 1 2 24 2 6 . 2 92 Peak Tracking Total 37 | . 3 2 . . 12 5 2 3 6 7 1 2 12 2 4 . 2 37 Tactical Retreats 34 | . . 1 . . 5 . . 6 3 2 1 . . 1 . . . 15 Traps | -11 -10 -10 -10 -9 -8 -7 -6 -6 -6 -5 -5 -5 -5 -4 -4 -3 -3 -2 ------- Run | Scr Mat Min Exi Min Mat Fac Fac Low Low Fac Upp Upp War Pro Fac Res DSF Res Traps Triggered 7 | . . 1 . . . 1 . . . 4 . . . . . . 1 . Indirectly . | . . . . . . . . . . . . . . . . . . . Trap Hack Attempts . | . . . . . . . . . . . . . . . . . . . Triggered . | . . . . . . . . . . . . . . . . . . . Disarmed . | . . . . . . . . . . . . . . . . . . . Reprogrammed . | . . . . . . . . . . . . . . . . . . . Reused . | . . . . . . . . . . . . . . . . . . . Traps Extracted 4 | . . 4 . . . . . . . . . . . . . . . . Installed . | . . . . . . . . . . . . . . . . . . . Triggered 9 | . . . . . . . . . 1 . . . 8 . . . . . Most Traps Carried 4 | . . 4 4 4 4 4 . . . . . . . . . . . . Machines | -11 -10 -10 -10 -9 -8 -7 -6 -6 -6 -5 -5 -5 -5 -4 -4 -3 -3 -2 ---------- Run | Scr Mat Min Exi Min Mat Fac Fac Low Low Fac Upp Upp War Pro Fac Res DSF Res Machines Disabled 8 | . . . . . . 3 . . . . . . . . . . . 5 Max in Single Turn 1 | . . . . . . 1 . . . . . . . . . . . 1 Garrison Access 2 | . . . . . . 1 . . . . . . . . . . . 1 Machines Sabotaged . | . . . . . . . . . . . . . . . . . . . Garrisons Compromised . | . . . . . . . . . . . . . . . . . . . Overloaded Fab Kills . | . . . . . . . . . . . . . . . . . . . Hacking | -11 -10 -10 -10 -9 -8 -7 -6 -6 -6 -5 -5 -5 -5 -4 -4 -3 -3 -2 --------- Run | Scr Mat Min Exi Min Mat Fac Fac Low Low Fac Upp Upp War Pro Fac Res DSF Res Machines Accessed 36 | . . 1 1 . 3 7 3 1 1 2 . . 13 . 3 1 . . Terminals 15 | . . . . . 3 5 3 . . 1 . . . . 2 1 . . Fabricators 3 | . . . . . . 2 . . . . . . . . 1 . . . Repair Stations 1 | . . . . . . . . . . 1 . . . . . . . . Recycling Units . | . . . . . . . . . . . . . . . . . . . Scanalyzers . | . . . . . . . . . . . . . . . . . . . Garrison Access . | . . . . . . . . . . . . . . . . . . . Total Hacks 71 | . . 1 1 . 7 14 4 1 1 3 . . 33 . 5 1 . . Successful 51 | . . 1 1 . 1 4 3 1 1 3 . . 33 . 2 1 . . Failed 20 | . . . . . 6 10 1 . . . . . . . 3 . . . Catastrophic 1 | . . . . . . . . . . . . . . . 1 . . . Database Lockouts . | . . . . . . . . . . . . . . . . . . . Manual 20 | . . . 1 . 7 8 2 . . . . . 1 . 1 . . . Terminals 27 | . . . . . 7 11 4 . . 1 . . . . 3 1 . . Fabricators 5 | . . . . . . 3 . . . . . . . . 2 . . . Repair Stations 2 | . . . . . . . . . . 2 . . . . . . . . Recycling Units . | . . . . . . . . . . . . . . . . . . . Scanalyzers . | . . . . . . . . . . . . . . . . . . . Garrison Access . | . . . . . . . . . . . . . . . . . . . Terminal Hacks 47 | . . 1 1 . 1 2 3 1 1 1 . . 33 . 2 1 . . Record 27 | . . . . . . . . . . . . . 25 . 2 . . . Prototype ID Bank 6 | . . . . . . . . . . . . . 6 . . . . . Open Door 5 | . . 1 . . . . . 1 1 . . . 2 . . . . . Open DSF 4 | . . . . . . 1 1 . . 1 . . . . . 1 . . Branch Access Points 3 | . . . . . 1 1 1 . . . . . . . . . . . Alert Level 1 | . . . . . . . 1 . . . . . . . . . . . EX-Prototype ID Bank 1 | . . . 1 . . . . . . . . . . . . . . . Fabricator Hacks 2 | . . . . . . 2 . . . . . . . . . . . . Network Status 1 | . . . . . . 1 . . . . . . . . . . . . Build 1 | . . . . . . 1 . . . . . . . . . . . . Repair Station Hacks 2 | . . . . . . . . . . 2 . . . . . . . . Scan Component 1 | . . . . . . . . . . 1 . . . . . . . . Repair 1 | . . . . . . . . . . 1 . . . . . . . . Recycling Unit Hacks . | . . . . . . . . . . . . . . . . . . . Scanalyzer . | . . . . . . . . . . . . . . . . . . . Garrison Access Hacks . | . . . . . . . . . . . . . . . . . . . Unauthorized Hacks . | . . . . . . . . . . . . . . . . . . . Terminals . | . . . . . . . . . . . . . . . . . . . Fabricators . | . . . . . . . . . . . . . . . . . . . Repair Stations . | . . . . . . . . . . . . . . . . . . . Recycling Units . | . . . . . . . . . . . . . . . . . . . Scanalyzers . | . . . . . . . . . . . . . . . . . . . Garrison Access . | . . . . . . . . . . . . . . . . . . . Data Cores Recovered . | . . . . . . . . . . . . . . . . . . . Used . | . . . . . . . . . . . . . . . . . . . Hacking Detections 14 | . . . . . 3 6 1 . . 1 . . . . 3 . . . Full Trace Events . | . . . . . . . . . . . . . . . . . . . Feedback Events . | . . . . . . . . . . . . . . . . . . . Feedback Blocked . | . . . . . . . . . . . . . . . . . . . Robot Schematics Acquired . | . . . . . . . . . . . . . . . . . . . Robots Built . | . . . . . . . . . . . . . . . . . . . Authchips . | . . . . . . . . . . . . . . . . . . . Time . | . . . . . . . . . . . . . . . . . . . Total Robot Build Rating . | . . . . . . . . . . . . . . . . . . . Part Schematics Acquired . | . . . . . . . . . . . . . . . . . . . Parts Built 2 | . . . . . . 2 . . . . . . . . . . . . Authchips . | . . . . . . . . . . . . . . . . . . . Time 95 | . . . . . . 95 . . . . . . . . . . . . Total Part Build Rating 10 | . . . . . . 10 . . . . . . . . . . . . Parts Repaired 1 | . . . . . . . . . . 1 . . . . . . . . Time 38 | . . . . . . . . . . 38 . . . . . . . . Parts Recycled . | . . . . . . . . . . . . . . . . . . . Recycled Matter . | . . . . . . . . . . . . . . . . . . . Retrieved Matter . | . . . . . . . . . . . . . . . . . . . Retrieved Components . | . . . . . . . . . . . . . . . . . . . Parts Scanalyzed . | . . . . . . . . . . . . . . . . . . . Part Schematics Acquired . | . . . . . . . . . . . . . . . . . . . Parts Damaged . | . . . . . . . . . . . . . . . . . . . Bothacking | -11 -10 -10 -10 -9 -8 -7 -6 -6 -6 -5 -5 -5 -5 -4 -4 -3 -3 -2 ------------ Run | Scr Mat Min Exi Min Mat Fac Fac Low Low Fac Upp Upp War Pro Fac Res DSF Res Used RIF Installer . | . . . . . . . . . . . . . . . . . . . Robots Hacked . | . . . . . . . . . . . . . . . . . . . Non-combat . | . . . . . . . . . . . . . . . . . . . Combat . | . . . . . . . . . . . . . . . . . . . Robot Hacks Applied . | . . . . . . . . . . . . . . . . . . . Relay Couplers Released 3 | . . . . . . 1 . . . . . . . . . . . 2 Machine Destruction 3 | . . . . . . 1 . . . . . . . . . . . 2 Fabnet Peak Effective % . | . . . . . . . . . . . . . . . . . . . Robots Rewired . | . . . . . . . . . . . . . . . . . . . Allies Hacked . | . . . . . . . . . . . . . . . . . . . Hacks Repelled . | . . . . . . . . . . . . . . . . . . . Allies | -11 -10 -10 -10 -9 -8 -7 -6 -6 -6 -5 -5 -5 -5 -4 -4 -3 -3 -2 -------- Run | Scr Mat Min Exi Min Mat Fac Fac Low Low Fac Upp Upp War Pro Fac Res DSF Res Total Allies 2 | . . 1 . . . . . . . . . . 1 . . . . . Largest Group 1 | . . 1 . . . . . . . . . . 1 1 . . . . Highest-Rated Group 99 | . . 31 . . . . . . . . . . 99 99 . . . . Highest-Rated Ally 99 | . . 31 . . . . . . . . . . 99 99 . . . . Total Orders 4 | . . . . . . . . . . . . . . . . . . 4 EXPLORE 4 | . . . . . . . . . . . . . . . . . . 4 Ally Attacks 16 | . . 6 . . . . . . . . . . . 10 . . . . Total Damage 532 | . . 85 . . . . . . . . . . . 447 . . . . Kills 2 | . . 1 . . . . . . . . . . . 1 . . . . Allies Corrupted . | . . . . . . . . . . . . . . . . . . . Allies Melted 1 | . . . . . . . . . . . . . . . . . . 1 Intel | -11 -10 -10 -10 -9 -8 -7 -6 -6 -6 -5 -5 -5 -5 -4 -4 -3 -3 -2 ------- Run | Scr Mat Min Exi Min Mat Fac Fac Low Low Fac Upp Upp War Pro Fac Res DSF Res Robot Analysis Total . | . . . . . . . . . . . . . . . . . . . Derelict Logs Recovered 6 | . . 1 . 1 . . . 1 1 . 1 . . 1 . . . . Drone Launches 13 | . . . . . . . . . . . . . . . . . . 13 Drone Recoveries 3 | . . . . . . . . . . . . . . . . . . 3 Exploration | -11 -10 -10 -10 -9 -8 -7 -6 -6 -6 -5 -5 -5 -5 -4 -4 -3 -3 -2 ------------- Run | Scr Mat Min Exi Min Mat Fac Fac Low Low Fac Upp Upp War Pro Fac Res DSF Res Turns Passed 8371 | . 165 1076 521 336 569 412 195 942 471 343 203 159 536 284 373 5 37 1744 Spaces Moved 9989 | 1 136 573 271 177 696 582 324 1105 518 250 501 361 879 667 530 9 56 2353 Core 7 | . . . . . . . . . . . . . . . . . . 7 Treads . | . . . . . . . . . . . . . . . . . . . Legs 1158 | 1 136 573 271 177 . . . . . . . . . . . . . . Wheels . | . . . . . . . . . . . . . . . . . . . Hover 2683 | . . . . . . . . . . . . . . . 272 9 56 2346 Flight 6141 | . . . . . 696 582 324 1105 518 250 501 361 879 667 258 . . . Fastest Speed 40 | 120 120 120 190 190 50 50 50 50 50 40 40 40 40 42 42 45 45 48 Average Speed 63 | 120 120 174 190 190 50 50 50 50 50 48 40 40 43 42 44 45 47 55 Slowest Speed 280 | 120 120 190 190 190 50 50 50 50 50 50 40 40 129 42 280 45 56 123 Overloaded Moves . | . . . . . . . . . . . . . . . . . . . Propulsion Burnouts . | . . . . . . . . . . . . . . . . . . . Robots Hopped 9 | . . . . . 2 . . 3 . 4 . . . . . . . . Cave-ins Triggered 1 | . . . . . . . . . . . . . . . . . . 1 Exploration Rate (%) 49 | 1 38 86 64 51 52 16 11 97 55 7 73 63 90 79 17 1 69 69 Regions Visited 18 Branch Regions 9 Pre-discovered Areas 1 | . . 1 . . . . . . . . . . . . . . . . Known Exits Taken 12 | . . . . . 1 1 1 1 1 1 1 1 1 1 1 1 . . Unknown Exits Taken 5 | 1 1 1 1 1 . . . . . . . . . . . . . . Scrap Searched 14 | . . 3 . 3 . . . 2 3 . 2 . . 1 . . . . Spaces Dug 23 | . . . . . 4 2 1 3 1 1 . . . . . . . 11 Terrain Destroyed 171 | . . . . . 4 55 1 3 1 1 . . . . . . . 106 Melee 23 | . . . . . 4 2 1 3 1 1 . . . . . . . 11 Projectile . | . . . . . . . . . . . . . . . . . . . AOE 148 | . . . . . . 53 . . . . . . . . . . . 95 Terrain Rammed . | . . . . . . . . . . . . . . . . . . . Walls Destroyed . | . . . . . . . . . . . . . . . . . . . Machines Disabled . | . . . . . . . . . . . . . . . . . . . Actions | -11 -10 -10 -10 -9 -8 -7 -6 -6 -6 -5 -5 -5 -5 -4 -4 -3 -3 -2 --------- Run | Scr Mat Min Exi Min Mat Fac Fac Low Low Fac Upp Upp War Pro Fac Res DSF Res Total 11863 | . 137 627 281 178 883 695 354 1484 729 460 502 374 1028 670 664 9 66 2722 Wait 1532 | . . 32 . . 150 81 27 363 204 175 1 14 126 4 106 . 1 248 Move 9956 | . 135 572 270 176 691 581 323 1099 517 244 500 360 878 666 529 8 55 2352 Hop 6 | . . . . . 2 . . 2 . 2 . . . . . . . . Pick Up 46 | . 1 3 5 1 4 9 . 5 1 2 . . 3 . 2 . 2 8 Fast Attach 73 | . . 3 . . 6 2 . 1 1 . 1 . 11 . 13 . 3 32 Attach 27 | . . . . . 2 2 2 3 1 3 . . 3 . 2 1 1 7 Detach 16 | . . . . . 4 1 . 1 2 2 . . 2 . 1 . . 3 Swap 12 | . 1 2 . . 2 1 1 2 . . . . . . . . . 3 Drop 76 | . . 5 6 1 5 9 . 3 2 9 . . 5 . 11 . 3 17 Fire 43 | . . 10 . . 11 5 . 2 . . . . . . . . . 15 Melee 54 | . . . . . 6 4 1 3 1 8 . . . . . . . 31 Ram 1 | . . . . . . . . . . . . . . . . . . 1 Kick . | . . . . . . . . . . . . . . . . . . . Crush . | . . . . . . . . . . . . . . . . . . . Escape Stasis 16 | . . . . . . . . . . 15 . . . . . . . 1 Rewire 1 | . . . . . . . . . . . . . . . . . 1 . Trap . | . . . . . . . . . . . . . . . . . . . Miscellaneous 4 | . . . . . . . . . . . . . . . . . . 4 Route ------- -11/Scrapyard -10/Materials (discovered 3 exits: [*Mat x2] / *Min) -10/Mines (discovered 2 exits: [*Mat] / *Exi) -10/Exiles -9/Mines -8/Materials (discovered 2 exits: *Fac / *Sto) -7/Factory (discovered 3 exits: *Fac / Low x2) -6/Factory (discovered 2 exits: *Low x2) -6/Lower Caves -6/Lower Caves -5/Factory -5/Upper Caves -5/Upper Caves -5/Warlord -4/Proximity Caves -4/Factory (discovered 2 exits: *Res / Arm) -3/Research (discovered 2 exits: Tes / DSF) -3/DSF -2/Research (discovered 1 exit: *Qua) History --------- Turn | Location | Event 1 | -11/Scrapyard | Discovered new exit (range 0) 1 | -11/Scrapyard | Entered Materials 85 | -10/Materials | Discovered new exit (range 11) 143 | -10/Materials | Discovered new exit (range 8) 148 | -10/Materials | Discovered new exit (range 14) 166 | -10/Materials | Entered Mines 173 | -10/Mines | Received a Rocket Launcher from a helpful Derelict 309 | -10/Mines | Met a Derelict who couldn't figure out how to use a Trap Extractor 348 | -10/Mines | Build established: Mutant 562 | -10/Mines | Assembled infested the area 846 | -10/Mines | Received a Mining Laser from a helpful Derelict 923 | -10/Mines | Found a damaged Exp. Sensor Array with a note attached 927 | -10/Mines | Found Prototype Device 928 | -10/Mines | Identified Exp. Sensor Array 1115 | -10/Mines | Discovered new exit (range 8) 1235 | -10/Mines | Deemed a non-threat by the Exiles lab entrance 1235 | -10/Mines | Discovered new exit (range 5) 1242 | -10/Mines | Entered Exiles 1345 | -10/Exiles | Met 8R-AWN 1375 | -10/Exiles | Met EX-HEX 1438 | -10/Exiles | Met EX-BIN 1461 | -10/Exiles | Aligned with FarCom system 1463 | -10/Exiles | Given EX-Vault access code 1508 | -10/Exiles | Opened EX-Vault 1523 | -10/Exiles | Found Flying Fortress v7 1562 | -10/Exiles | Warned to stay clear of 0b10 Research branches 1616 | -10/Exiles | Met EX-DEC 1741 | -10/Exiles | Discovered new exit (range 14) 1763 | -10/Exiles | Left Exiles lab with Flying Fortress v7 1763 | -10/Exiles | Entered Mines 2048 | -9/Mines | Discovered new exit (range 14) 2073 | -9/Mines | Learned Materials security intel 2099 | -9/Mines | Entered Materials 2099 | -8/Materials | Evolved 4 slots: Propulsion x2, Utility x2 2240 | -8/Materials | Discovered new exit (range 14) 2477 | -8/Materials | Identified exit to Factory 2602 | -8/Materials | Discovered new exit (range 14) 2608 | -8/Materials | Identified exit to Storage 2668 | -8/Materials | Entered Factory 2668 | -7/Factory | Evolved 2 slots: Utility x2 2790 | -7/Factory | Fabricated Lgt. Fission Core (x2) 2959 | -7/Factory | Identified exit to DSF 2973 | -7/Factory | Build established: Hacker-Mutant 3007 | -7/Factory | Discovered new exit (range 6) 3009 | -7/Factory | Identified exit to Factory 3020 | -7/Factory | Identified exit to Lower Caves 3080 | -7/Factory | Entered another Factory area 3080 | -6/Factory | Evolved 2 slots: Utility x2 3182 | -6/Factory | Identified exit to DSF 3187 | -6/Factory | Identified exit to Lower Caves 3275 | -6/Factory | Entered Lower Caves 3362 | -6/Lower Caves | Spotted B-75 Beast 3379 | -6/Lower Caves | Build established: Hacker-Scout 3460 | -6/Lower Caves | Learned 4 Factory zone layouts 3552 | -6/Lower Caves | Attracted the attention of an 0b10 checkpoint 3614 | -6/Lower Caves | Discovered new exit (range 15) 3881 | -6/Lower Caves | Encountered a Warlord checkpoint 4112 | -6/Lower Caves | Found Alien Artifact 4114 | -6/Lower Caves | Identified Core Expander 4114 | -6/Lower Caves | Installed Core Expander, added new Power slot 4216 | -6/Lower Caves | Identified exit to Lower Caves 4217 | -6/Lower Caves | Entered another Lower Caves area 4251 | -6/Lower Caves | Build established: Scout 4479 | -6/Lower Caves | Attracted the attention of an 0b10 checkpoint 4480 | -6/Lower Caves | Discovered new exit (range 15) 4495 | -6/Lower Caves | Identified exit to Factory 4541 | -6/Lower Caves | Found Prototype Device 4541 | -6/Lower Caves | Identified Heart of Steel 4551 | -6/Lower Caves | Learned Factory terminal intel 4688 | -6/Lower Caves | Entered Factory 4688 | -5/Factory | Evolved 2 slots: Utility x2 4690 | -5/Factory | Loaded intel: 28 terminal locations 4692 | -5/Factory | Identified exit to DSF 4739 | -5/Factory | Repaired Imp. Propulsion Shielding 4995 | -5/Factory | Build established: Ninja 5023 | -5/Factory | Discovered new exit (range 14) 5028 | -5/Factory | Identified exit to Upper Caves 5031 | -5/Factory | Entered Upper Caves 5034 | -5/Upper Caves | Identified exit to Upper Caves 5049 | -5/Upper Caves | Attracted the attention of an 0b10 checkpoint 5058 | -5/Upper Caves | Lost 4 parts (1n3u) 5122 | -5/Upper Caves | Encountered a Warlord checkpoint 5234 | -5/Upper Caves | Entered another Upper Caves area 5295 | -5/Upper Caves | Build established: Mutant 5386 | -5/Upper Caves | Discovered new exit (range 9) 5389 | -5/Upper Caves | Identified exit to Warlord 5393 | -5/Upper Caves | Entered Warlord 5483 | -5/Warlord | Met Warlord 5508 | -5/Warlord | Warlord's base attacked by MAIN.C 5592 | -5/Warlord | Found Prototype Launcher 5592 | -5/Warlord | Identified Vortex Catalyst Activator 5596 | -5/Warlord | Found Prototype Energy Cannon 5596 | -5/Warlord | Identified Vortex Cannon 5645 | -5/Warlord | Learned Armory trap positions 5645 | -5/Warlord | Learned Armory emergency access door positions 5645 | -5/Warlord | Learned 4 Research zone layouts 5645 | -5/Warlord | Learned 4 Research zone layouts 5645 | -5/Warlord | Learned 4 Command zone layouts 5646 | -5/Warlord | Learned Armory security intel 5646 | -5/Warlord | Learned Quarantine security intel 5646 | -5/Warlord | Learned Factory terminal intel 5646 | -5/Warlord | Learned Factory repair station intel 5646 | -5/Warlord | Learned Armory repair station intel 5709 | -5/Warlord | Warlord forces counterattacked 5751 | -5/Warlord | Build established: Derelict-Mutant 5822 | -5/Warlord | Spotted Striker 5869 | -5/Warlord | Heart of Steel transformed into Warbot 5893 | -5/Warlord | Discovered new exit (range 8) 5895 | -5/Warlord | Identified exit to Proximity Caves 5929 | -5/Warlord | Entered Proximity Caves 5929 | -4/Proximity Caves | Accompanied by 1 ally (Warbot) 6207 | -4/Proximity Caves | Discovered new exit (range 15) 6213 | -4/Proximity Caves | Identified exit to Factory 6213 | -4/Proximity Caves | Entered Factory 6213 | -4/Factory | Evolved 2 slots: Propulsion x1, Utility x1 6214 | -4/Factory | Identified exit to Armory 6215 | -4/Factory | Loaded intel: 26 terminal locations 6216 | -4/Factory | Loaded intel: 6 repair station locations 6580 | -4/Factory | Discovered new exit (range 15) 6585 | -4/Factory | Identified exit to Research 6586 | -4/Factory | Entered Research 6586 | -3/Research | Evolved 2 slots: Power x1, Utility x1 6587 | -3/Research | Identified exit to Testing 6590 | -3/Research | Identified exit to DSF 6591 | -3/Research | Entered DSF 6607 | -3/DSF | Additional patrols routed to DSF 6612 | -3/DSF | Discovered new exit (range 14) 6627 | -3/DSF | Identified exit to Research 6628 | -3/DSF | Entered Research 6628 | -2/Research | Warlord forces began assault on 0b10 6628 | -2/Research | Evolved 2 slots: Propulsion x1, Utility x1 6629 | -2/Research | Identified exit to Quarantine 6640 | -2/Research | Lost 5 parts (1p1n3u) 6738 | -2/Research | Research machine network offline 6855 | -2/Research | Lost 3 parts (2u1w) 6899 | -2/Research | Borebot progress halted 6911 | -2/Research | Build established: Generator-Scout 6999 | -2/Research | Found Prototype Device 6999 | -2/Research | Identified Thermal Barrier 7009 | -2/Research | Lost 3 parts (3u) 7069 | -2/Research | Borebot progress halted 7077 | -2/Research | Borebot progress halted 7181 | -2/Research | Met up with Warlord 7239 | -2/Research | Found Prototype Slashing Weapon 7252 | -2/Research | Identified Particle Cleaver 7269 | -2/Research | Found Gamma Bomb Array 7325 | -2/Research | Spotted B-90 Cyclops 7332 | -2/Research | Spotted Executioner 7365 | -2/Research | Spotted Striker 7366 | -2/Research | Found Prototype Processor 7366 | -2/Research | Identified Exp. Targeting Computer 7369 | -2/Research | Found Prototype Processor 7369 | -2/Research | Identified Exp. Core Analyzer 7479 | -2/Research | Warlord destroyed during the assault 7686 | -2/Research | Spotted Executioner 7746 | -2/Research | Spotted B-90 Cyclops 7775 | -2/Research | Spotted Executioner 7868 | -2/Research | Crushed by falling debris 7869 | -2/Research | System corruption reached 10% 7905 | -2/Research | Lost 5 parts (5u) 7972 | -2/Research | Spotted Striker 7990 | -2/Research | Spotted Striker 8135 | -2/Research | Spotted Executioner 8137 | -2/Research | Spotted Executioner 8171 | -2/Research | Found Prototype Device 8171 | -2/Research | Identified Exp. Force Field 8174 | -2/Research | Found Prototype Device 8174 | -2/Research | Identified Exp. Actuator Array 8230 | -2/Research | Found Gamma Bomb Array 8316 | -2/Research | Spotted Executioner 8316 | -2/Research | Spotted B-90 Cyclops 8351 | -2/Research | Spotted Executioner 8352 | -2/Research | Core integrity fell below 50% 8364 | -2/Research | Spotted Executioner 8367 | -2/Research | Spotted Executioner 8368 | -2/Research | Core integrity fell below 20% 8372 | -2/Research | Destroyed by P-80 Master with Gamma Rifle Last Messages --------------- 08367_ Penetrated by Slug. 08367_ Scanalyzer disabled. 08367_ Penetrated by Slug. 08368_ C-30 ARC bursts open, deploying its payload. 08368_ G-73 Enforcer unfolds itself. 08369_ Adv. Signal Interpreter destroyed. 08369_ Ionic Axe destroyed. 08370_ Penetrated by Slug. 08370_ Slug penetrates S-43 Plague. 08370_ S-43 Plague destroyed. 08370_ Penetrated by Slug. 08371_ Slammed into Executioner. 08371_ Imp. Launcher Guidance Computer destroyed. 08371_ System corrupted by crushing effect (+5). 08371_ Penetrated by Slug. 08371_ Exp. Coolant Injector destroyed. 08371_ Slug penetrates Wall. 08371_ Critical hit (Destroy). 08371_ Imp. Launcher Guidance Computer destroyed. [Achievement: I Think I Know What's Going On] Map ----- +----------------------------------------------------+ | ??????????????????????????+ #?????? | | ??????????????????????????# +?????? | | ??????????????????????????+ = #?????? | | ??????????????????????????######[% #?????? | | ???????????????????????????????# * #?????? | | ???????????????????????????????# #?????? | | ???????????????????????????????#] #?????? | | ???????????????????????????????#] #?????? | | ?????????????????#########"#####]] = #?????? | | ????????????????? # #?????? | | ?????????????????!/ ! # E ### #?????? | | ???????????????? !/ # #?? #?????? | | ???????????????? ! #gh #?? #?????? | | ???????????????# # #??? #?????? | | ??????????????## + #???? #?????? | | ??????????????# """ "" h# #????? #?????? | | ???????????????# Y """S ""h #s #????????????? | | ???????????????# # #????????????? | | ???????????????# = s # ##???????????? | | ?????????????????#########%s####g ;#???????????? | | ????????????????????????#=%s p #????????????? | | ????????????????????????# *ss #????????????? | | ????????????????????????# s ss #????????????? | | ??????????????????????g?# E #????????????? | | ????????????????????##g###s;#########????????????? | | ????????????????????# @gg #???????????????? | | ????????????????????# E #???????????????? | | ????????????????????# % #???????????????? | | ????????????????????# #???????????????? | | ????????????????????# """" s #???????????????? | | ????????????????????# """"s s #???????????????? | | ????????????????????# """" s #???????????????? | | ????????????????????# """" #???????????????? | | ????????????????????# ? #???????????????? | | ????????????????????# ????? #???????????????? | | ??????????????????????????? #???????????????? | | ??????????????????????????? #???????????????? | | ????????????????????????????######???????????????? | | ?????????????????????????????????????????????????? | | ?????????????????????????????????????????????????? | | ?????????????????????????????????????????????????? | | ?????????????????????????????????????????????????? | | ?????????????????????????????????????????????????? | | ?????????????????????????????????????????????????? | | ?????????????????????????????????????????????????? | | ?????????????????????????????????????????????????? | | ?????????????????????????????????????????????????? | | ?????????????????????????????????????????????????? | | ?????????????????????????????????????????????????? | | ?????????????????????????????????????????????????? | +----------------------------------------------------+ Best States ------------- Heat Dissipation 87 Coolant Potential 120 Energy Generation 89 Energy Capacity 1070 Matter Stores 300 Matter Capacity 300 Sight Range 16 Robot Scan Range 20 Terrain Scan Range 24 Terrain Scan Density 210 Jamming Range 12 Cloak Strength 3 Power Amplification 60 Armor Coverage 450 Resistance: TH 50 Propulsion Shielding 66 Point Defense Rating 160 Melee Speed Boost 40 Phase Shifting 5 Evasion (%) 72 Targeting Accuracy 12 Launcher Accuracy 60 Core Analysis 8 Offensive Hacking 20 Trap Extractor Capacity 10 Item Schematics ----------------- None Robot Schematics ------------------ None Fabricated ------------ Lgt. Fission Core | x2 | -7/Factory | Preloaded Alien Tech Used ----------------- Core Expander Achievements -------------- I Think I Know What's Going On Challenges ------------ None Game ------ Seed SuspensionReinforcedAnalyzer Manual? 0 Play Time 02:08:28 Cumulative 107.8 hours Start 2022.10.18 @ 21:56:40 End 2022.10.20 @ 23:01:18 Sessions 5 Manual Loads 0 Difficulty Rogue Special Mode None Game No. 114 Rogue 114 Adventurer 0 Explorer 0 Win Type - Total 0 Types 0/0/0/0/0/0/0/0/0 Lore% 50 Gallery% 64 Achievement% 48 Wizard Run 0 Options --------- ASCII 0 Keyboard 0 Movement Numpad Keybinds 0 Fullscreen 1 Font 18/SmallcapsGlow Map View 76x50 Tactical HUD 1 Map Filters NONE Filters NONE Steam 1 RUN: 2b599528-44f5-4402-883c-43ebb57d812d